fUST/lending_fUST_20241111
["ID","MTS","AMOUNT","RATE_DAILY","PERIOD"]
[341900498,1731276632175,-1476.91019877,0.000235,2]
[341900500,1731276632187,-633.90707799,0.000235,2]
[341900503,1731276632198,-47886.97479488,0.000235,2]
[341900517,1731276638219,-12651.96235864,0.000235,2]
[341900518,1731276638231,-3761.24728205,0.000235,2]
[341900537,1731276639913,-3995.8,0.000235,2]
[341900588,1731276643079,-39966.71019426,0.000235,2]
[341900590,1731276643089,-1000.0,0.00023608,2]
[341900592,1731276643099,-7334.2010622,0.00023841,2]
[341900594,1731276643109,-476.25424489,0.00024045,2]
[341900596,1731276643119,-6624.0,0.00024103,4]
[341900598,1731276643128,-420.0,0.00024294,2]
[341900600,1731276643137,-500.0,0.00024302,2]
[341900602,1731276643147,-420.0,0.00024602,2]
[341900604,1731276643160,-253.33980704,0.00024656,2]
[341900606,1731276643171,-500.0,0.00024656,2]
[341900609,1731276643182,-190.30203611,0.00024656,2]
[341900611,1731276643191,-500.0,0.00024656,2]
[341900613,1731276643201,-609.22752891,0.00024656,2]
[341900615,1731276643212,-569.91433789,0.00024656,2]
[341900617,1731276643222,-500.0,0.00024656,2]
[341900619,1731276643235,-500.0,0.00024656,2]
[341900621,1731276643253,-500.0,0.00024657,2]
[341900623,1731276643263,-500.0,0.00024657,2]
[341900625,1731276643272,-500.0,0.00024657,2]
[341900627,1731276643282,-500.0,0.00024657,2]
[341900629,1731276643293,-500.0,0.00024657,2]
[341900631,1731276643302,-500.0,0.00024657,2]
[341900633,1731276643311,-540.09805784,0.00024657,2]
[341900635,1731276643321,-500.0,0.00024657,2]
[341900637,1731276643330,-500.0,0.00024657,2]
[341900638,1731276643339,-500.0,0.00024657,2]
[341900639,1731276643349,-500.0,0.00024657,2]
[341900640,1731276643360,-1000.0,0.00024657,2]
[341900641,1731276643370,-500.0,0.00024657,2]
[341900644,1731276643380,-500.0,0.00024657,2]
[341900645,1731276643390,-500.0,0.00024657,2]
[341900648,1731276643400,-500.0,0.00024657,2]
[341900649,1731276643410,-500.0,0.00024657,2]
[341900651,1731276643419,-530.14148153,0.00024657,2]
[341900653,1731276643428,-500.0,0.00024657,2]
[341900655,1731276643438,-500.0,0.00024657,2]
[341900657,1731276643447,-500.0,0.00024657,2]
[341900659,1731276643457,-500.0,0.00024657,2]
[341900661,1731276643466,-408.80152909,0.00024657,2]
[341900663,1731276643475,-645.22,0.00024657,2]
[341900664,1731276643485,-500.0,0.00024657,2]
[341900665,1731276643499,-500.0,0.00024657,2]
[341900666,1731276643509,-482.92072587,0.00024657,2]
[341900667,1731276643518,-500.0,0.00024657,2]
[341900668,1731276643528,-500.0,0.00024657,2]
[341900669,1731276643538,-500.0,0.00024657,2]
[341900670,1731276643547,-500.0,0.00024657,2]
[341900671,1731276643556,-500.0,0.00024657,2]
[341900672,1731276643565,-500.0,0.00024657,2]
[341900673,1731276643574,-500.0,0.00024657,2]
[341900674,1731276643583,-1175.45,0.00024657,2]
[341900675,1731276643593,-500.0,0.00024657,2]
[341900676,1731276643603,-500.0,0.00024657,2]
[341900677,1731276643613,-679.58,0.00024657,2]
[341900678,1731276643622,-500.0,0.00024657,2]
[341900679,1731276643633,-500.0,0.00024657,2]
[341900680,1731276643642,-500.0,0.00024657,2]
[341900681,1731276643652,-500.0,0.00024657,2]
[341900682,1731276643661,-253.923298,0.00024657,2]
[341900683,1731276643671,-500.0,0.00024657,2]
[341900684,1731276643680,-500.0,0.00024657,2]
[341900685,1731276643690,-895.77,0.00024657,2]
[341900686,1731276643699,-500.0,0.00024657,2]
[341900687,1731276643708,-500.0,0.00024657,2]
[341900688,1731276643717,-500.0,0.00024657,2]
[341900690,1731276643727,-500.0,0.00024657,2]
[341900692,1731276643736,-500.0,0.00024657,2]
[341900694,1731276643749,-500.0,0.00024657,2]
[341900696,1731276643758,-500.0,0.00024657,2]
[341900698,1731276643767,-500.0,0.00024657,2]
[341900700,1731276643776,-500.0,0.00024657,2]
[341900702,1731276643786,-353.94315285,0.00024657,2]
[341900704,1731276643795,-500.0,0.00024657,2]
[341900706,1731276643804,-500.0,0.00024657,2]
[341900708,1731276643814,-500.0,0.00024657,2]
[341900710,1731276643823,-500.0,0.00024657,2]
[341900711,1731276643832,-500.0,0.00024657,2]
[341900713,1731276643842,-500.0,0.00024657,2]
[341900715,1731276643851,-775.66,0.00024657,2]
[341900717,1731276643861,-500.0,0.00024657,2]
[341900719,1731276643870,-500.0,0.00024657,2]
[341900721,1731276643880,-516.8128178,0.00024657,2]
[341900723,1731276643890,-500.0,0.00024657,2]
[341900725,1731276643899,-200.0,0.00024657,2]
[341900727,1731276643909,-640.43,0.00024657,2]
[341900729,1731276643919,-500.0,0.00024657,2]
[341900732,1731276643928,-500.0,0.00024657,2]
[341900734,1731276643938,-500.0,0.00024657,2]
[341900736,1731276643948,-500.0,0.00024657,2]
[341900738,1731276643957,-500.0,0.00024657,2]
[341900740,1731276643966,-503.13850198,0.00024657,2]
[341900742,1731276643975,-500.0,0.00024657,2]
[341900744,1731276643985,-500.0,0.00024657,2]
[341900746,1731276643996,-500.0,0.00024657,2]
[341900748,1731276644006,-500.0,0.00024657,2]
[341900750,1731276644015,-500.0,0.00024657,2]
[341900751,1731276644024,-569.61,0.00024657,2]
[341900754,1731276644034,-2336.0,0.00024657,2]
[341900756,1731276644043,-500.0,0.00024657,2]
[341900758,1731276644052,-500.0,0.00024657,2]
[341900759,1731276644062,-500.0,0.00024657,2]
[341900761,1731276644071,-500.0,0.00024657,2]
[341900762,1731276644080,-500.0,0.00024657,2]
[341900764,1731276644090,-500.0,0.00024657,2]
[341900766,1731276644099,-500.0,0.00024657,2]
[341900768,1731276644109,-500.0,0.00024657,2]
[341900769,1731276644121,-500.0,0.00024657,2]
[341900770,1731276644130,-500.0,0.00024657,2]
[341900772,1731276644139,-500.0,0.00024657,2]
[341900773,1731276644150,-500.0,0.00024657,2]
[341900775,1731276644163,-500.0,0.00024657,2]
[341900776,1731276644173,-500.0,0.00024657,2]
[341900777,1731276644183,-500.0,0.00024657,2]
[341900778,1731276644193,-500.0,0.00024657,2]
[341900779,1731276644203,-500.0,0.00024657,2]
[341900780,1731276644212,-500.0,0.00024657,2]
[341900781,1731276644222,-500.0,0.00024657,2]
[341900782,1731276644232,-2262.92,0.00024657,2]
[341900783,1731276644247,-500.0,0.00024657,2]
[341900784,1731276644257,-500.0,0.00024657,2]
[341900785,1731276644267,-500.0,0.00024657,2]
[341900786,1731276644276,-500.0,0.00024657,2]
[341900787,1731276644286,-723.42,0.00024657,2]
[341900788,1731276644295,-500.0,0.00024657,2]
[341900789,1731276644305,-520.65,0.00024657,2]
[341900790,1731276644314,-500.0,0.00024657,2]
[341900791,1731276644324,-500.0,0.00024657,2]
[341900792,1731276644334,-500.0,0.00024657,2]
[341900793,1731276644344,-343.8919319,0.00024657,2]
[341900794,1731276644354,-500.0,0.00024657,2]
[341900795,1731276644363,-500.0,0.00024657,2]
[341900796,1731276644372,-1089.82,0.00024657,2]
[341900797,1731276644381,-502.14,0.00024657,2]
[341900798,1731276644391,-500.0,0.00024657,2]
[341900799,1731276644401,-500.0,0.00024657,2]
[341900800,1731276644410,-1252.01,0.00024657,2]
[341900801,1731276644420,-500.0,0.00024657,2]
[341900802,1731276644430,-500.0,0.00024657,2]
[341900803,1731276644440,-755.45,0.00024657,2]
[341900804,1731276644450,-1781.64,0.00024657,2]
[341900805,1731276644460,-2222.1,0.00024657,2]
[341900806,1731276644470,-500.0,0.00024657,2]
[341900807,1731276644479,-500.0,0.00024657,2]
[341900808,1731276644489,-863.08,0.00024657,2]
[341900809,1731276644503,-500.0,0.00024657,2]
[341900810,1731276644513,-500.0,0.00024657,2]
[341900811,1731276644522,-500.0,0.00024657,2]
[341900812,1731276644531,-500.0,0.00024657,2]
[341900813,1731276644541,-500.0,0.00024657,2]
[341900814,1731276644550,-500.0,0.00024657,2]
[341900815,1731276644560,-1281.41,0.00024657,2]
[341900816,1731276644570,-500.0,0.00024657,2]
[341900817,1731276644579,-752.95,0.00024657,2]
[341900818,1731276644589,-500.0,0.00024657,2]
[341900819,1731276644598,-500.0,0.00024657,2]
[341900820,1731276644608,-500.0,0.00024657,2]
[341900821,1731276644618,-500.0,0.00024657,2]
[341900822,1731276644627,-500.0,0.00024657,2]
[341900823,1731276644637,-589.60649459,0.00024657,2]
[341900824,1731276644647,-4686.34,0.00024657,2]
[341900825,1731276644656,-500.0,0.00024657,2]
[341900826,1731276644667,-500.0,0.00024657,2]
[341900827,1731276644677,-500.0,0.00024657,2]
[341900828,1731276644688,-500.0,0.00024657,2]
[341900829,1731276644698,-21424.6,0.00024657,2]
[341900830,1731276644707,-759.55,0.00024657,2]
[341900831,1731276644717,-500.0,0.00024657,2]
[341900832,1731276644728,-1745.33,0.00024657,2]
[341900833,1731276644737,-500.0,0.00024657,2]
[341900834,1731276644752,-500.0,0.00024657,2]
[341900835,1731276644763,-500.0,0.00024657,2]
[341900836,1731276644772,-650.76,0.00024657,2]
[341900837,1731276644782,-520.96,0.00024657,2]
[341900838,1731276644792,-500.0,0.00024657,2]
[341900839,1731276644802,-500.0,0.00024657,2]
[341900840,1731276644813,-1823.65,0.00024657,2]
[341900841,1731276644823,-500.0,0.00024657,2]
[341900842,1731276644833,-500.0,0.00024657,2]
[341900843,1731276644842,-500.0,0.00024657,2]
[341900844,1731276644853,-500.0,0.00024657,2]
[341900845,1731276644863,-500.0,0.00024657,2]
[341900846,1731276644872,-500.0,0.00024657,2]
[341900847,1731276644882,-500.0,0.00024657,2]
[341900848,1731276644893,-500.0,0.00024657,2]
[341900849,1731276644903,-500.0,0.00024657,2]
[341900850,1731276644912,-500.0,0.00024657,2]
[341900851,1731276644923,-3495.02,0.00024657,2]
[341900852,1731276644933,-500.0,0.00024657,2]
[341900853,1731276644943,-508.06127996,0.00024657,2]
[341900854,1731276644952,-1290.22,0.00024657,2]
[341900855,1731276644962,-250.0,0.00024657,2]
[341900856,1731276644972,-500.0,0.00024657,2]
[341900857,1731276644981,-500.0,0.00024657,2]
[341900858,1731276644991,-500.0,0.00024657,2]
[341900859,1731276645003,-1360.26,0.00024657,2]
[341900860,1731276645013,-500.0,0.00024657,2]
[341900861,1731276645023,-500.0,0.00024657,2]
[341900862,1731276645033,-500.0,0.00024657,2]
[341900863,1731276645043,-500.0,0.00024657,2]
[341900864,1731276645052,-554.41,0.00024657,2]
[341900865,1731276645062,-500.0,0.00024657,2]
[341900866,1731276645073,-500.0,0.00024657,2]
[341900867,1731276645083,-500.0,0.00024657,2]
[341900868,1731276645092,-500.0,0.00024657,2]
[341900869,1731276645102,-787.79,0.00024657,2]
[341900870,1731276645112,-291.18591731,0.00024657,2]
[341900871,1731276645133,-1801.61408269,0.00024657,2]
[341900872,1731276645142,-500.0,0.00024657,2]
[341900873,1731276645152,-530.47,0.00024657,2]
[341900874,1731276645166,-500.0,0.00024657,2]
[341900875,1731276645176,-430.47248575,0.00024657,2]
[341900876,1731276645226,-393.57751425,0.00024657,2]
[341900877,1731276645237,-1404.3,0.00024657,2]
[341900878,1731276645249,-500.0,0.00024657,2]
[341900879,1731276645258,-500.0,0.00024657,2]
[341900880,1731276645268,-1455.39,0.00024657,2]
[341900881,1731276645278,-500.0,0.00024657,2]
[341900882,1731276645287,-256.70299187,0.00024657,2]
[341900885,1731276646054,-243.29700813,0.00024657,2]
[341900886,1731276646064,-1672.98,0.00024657,2]
[341900887,1731276646074,-500.0,0.00024657,2]
[341900888,1731276646084,-500.0,0.00024657,2]
[341900889,1731276646094,-645.26334826,0.00024657,2]
[341900890,1731276646104,-1158.1,0.00024657,2]
[341900891,1731276646114,-522.37,0.00024657,2]
[341900892,1731276646124,-500.0,0.00024657,2]
[341900893,1731276646133,-500.0,0.00024657,2]
[341900894,1731276646143,-701.56,0.00024657,2]
[341900895,1731276646154,-1050.82964361,0.00024657,2]
[341900904,1731277052283,1169.27083333,0.00020844,2]
[341900912,1731277200693,166.4931,0.00013973,2]
[341900913,1731277363841,1169.27083333,0.00020844,2]
[341900915,1731277678100,1169.27083333,0.00020844,2]
[341900926,1731277775845,1557.0,0.0002,2]
[341900984,1731277832124,-306.61436202,0.00021155,2]
[341901076,1731277833030,157.653,0.0002598,60]
[341901251,1731277835117,-862.65647131,0.00021155,2]
[341901253,1731277835127,-343.70175,0.0002201,2]
[341901255,1731277835136,-300.0,0.00022259,2]
[341901257,1731277835146,-300.0,0.00022259,2]
[341901259,1731277835155,-831.67534847,0.0002226,2]
[341901261,1731277835166,-10478.13291618,0.0002226,2]
[341901263,1731277835178,-13590.19173535,0.0002226,2]
[341901265,1731277835188,-166.666666,0.00022526,2]
[341901267,1731277835197,-177.845592,0.00022541,2]
[341901270,1731277835207,-166.4931,0.00022759,2]
[341901272,1731277835217,-665.107467,0.00022893,2]
[341901273,1731277835227,-665.107467,0.00023578,2]
[341901276,1731277835236,-1214.9279054,0.00023719,2]
[341901278,1731277835247,-157.594,0.0002381,2]
[341901280,1731277835256,-258.6373018,0.00023825,2]
[341901282,1731277835266,-181.5006074,0.00023836,2]
[341901284,1731277835275,-166.666666,0.00024061,2]
[341901286,1731277835284,-420.0,0.00024182,2]
[341901288,1731277835293,-665.107467,0.00024263,2]
[341901290,1731277835303,-500.0,0.00024297,2]
[341901291,1731277835312,-447.0942942,0.00024384,2]
[341901294,1731277835321,-420.0,0.00024485,2]
[341901296,1731277835331,-1000.0,0.00024557,2]
[341901298,1731277835340,-244.95,0.00024647,3]
[341901300,1731277835351,-734.89,0.00024647,3]
[341901302,1731277835360,-592.5400235,0.00024657,2]
[341901303,1731277835369,-500.0,0.00024657,2]
[341901306,1731277835378,-500.0,0.00024657,2]
[341901307,1731277835388,-500.0,0.00024657,2]
[341901310,1731277835397,-500.0,0.00024657,2]
[341901312,1731277835406,-500.0,0.00024657,2]
[341901313,1731277835415,-500.0,0.00024657,2]
[341901314,1731277835425,-500.0,0.00024657,2]
[341901315,1731277835434,-500.0,0.00024657,2]
[341901316,1731277835444,-500.0,0.00024657,2]
[341901317,1731277835453,-500.0,0.00024657,2]
[341901318,1731277835463,-500.0,0.00024657,2]
[341901319,1731277835472,-500.0,0.00024657,2]
[341901320,1731277835482,-500.0,0.00024657,2]
[341901321,1731277835493,-500.0,0.00024657,2]
[341901322,1731277835503,-500.0,0.00024657,2]
[341901323,1731277835511,-200.0,0.00024657,2]
[341901324,1731277835520,-500.0,0.00024657,2]
[341901325,1731277835529,-500.0,0.00024657,2]
[341901326,1731277835539,-500.0,0.00024657,2]
[341901327,1731277835551,-500.0,0.00024657,2]
[341901328,1731277835560,-500.0,0.00024657,2]
[341901329,1731277835569,-500.0,0.00024657,2]
[341901330,1731277835579,-502.07543091,0.00024657,2]
[341901331,1731277835587,-500.0,0.00024657,2]
[341901332,1731277835599,-545.87,0.00024657,2]
[341901333,1731277835608,-500.0,0.00024657,2]
[341901334,1731277835618,-500.0,0.00024657,2]
[341901335,1731277835627,-500.0,0.00024657,2]
[341901337,1731277835637,-500.0,0.00024657,2]
[341901339,1731277835646,-500.0,0.00024657,2]
[341901341,1731277835656,-500.0,0.00024657,2]
[341901343,1731277835665,-500.0,0.00024657,2]
[341901345,1731277835675,-618.34,0.00024657,2]
[341901347,1731277835684,-500.0,0.00024657,2]
[341901349,1731277835693,-500.0,0.00024657,2]
[341901351,1731277835703,-500.0,0.00024657,2]
[341901353,1731277835713,-500.0,0.00024657,2]
[341901355,1731277835721,-500.0,0.00024657,2]
[341901357,1731277835731,-500.0,0.00024657,2]
[341901359,1731277835742,-500.0,0.00024657,2]
[341901361,1731277835751,-500.0,0.00024657,2]
[341901363,1731277835760,-500.0,0.00024657,2]
[341901365,1731277835769,-500.0,0.00024657,2]
[341901367,1731277835778,-500.0,0.00024657,2]
[341901368,1731277835787,-500.0,0.00024657,2]
[341901369,1731277835796,-500.0,0.00024657,2]
[341901371,1731277835805,-500.0,0.00024657,2]
[341901372,1731277835815,-500.0,0.00024657,2]
[341901373,1731277835824,-500.0,0.00024657,2]
[341901375,1731277835833,-500.0,0.00024657,2]
[341901377,1731277835842,-858.45,0.00024657,2]
[341901378,1731277835851,-450.93347643,0.00024657,2]
[341901390,1731277836024,-49.06652357,0.00024657,2]
[341901391,1731277836033,-1126.48,0.00024657,2]
[341901392,1731277836043,-517.25695715,0.00024657,2]
[341901393,1731277836052,-500.0,0.00024657,2]
[341901394,1731277836062,-651.26,0.00024657,2]
[341901395,1731277836071,-500.0,0.00024657,2]
[341901396,1731277836081,-368.50895714,0.00024657,2]
[341901427,1731277838446,-131.49104286,0.00024657,2]
[341901428,1731277838455,-500.0,0.00024657,2]
[341901429,1731277838464,-297.99967497,0.00024657,2]
[341901430,1731277838523,-202.00032503,0.00024657,2]
[341901431,1731277838532,-508.47334144,0.00024657,2]
[341901432,1731277838546,-503.3195008,0.00024657,2]
[341901433,1731277838555,-500.0,0.00024657,2]
[341901434,1731277838564,-500.0,0.00024657,2]
[341901435,1731277838573,-364.25243693,0.00024657,2]
[341901436,1731277838583,-507.79648618,0.00024657,2]
[341901437,1731277838592,-500.0,0.00024657,2]
[341901438,1731277838602,-500.0,0.00024657,2]
[341901439,1731277838611,-500.0,0.00024657,2]
[341901440,1731277838621,-500.0,0.00024657,2]
[341901441,1731277838630,-505.67016315,0.00024657,2]
[341901442,1731277838639,-500.0,0.00024657,2]
[341901443,1731277838649,-500.0,0.00024657,2]
[341901444,1731277838658,-500.0,0.00024657,2]
[341901445,1731277838667,-649.72046246,0.00024657,2]
[341901446,1731277838677,-509.93883195,0.00024657,2]
[341901447,1731277838686,-500.0,0.00024657,2]
[341901448,1731277838695,-500.0,0.00024657,2]
[341901449,1731277838705,-500.0,0.00024657,2]
[341901450,1731277838714,-500.0,0.00024657,2]
[341901451,1731277838723,-500.0,0.00024657,2]
[341901452,1731277838732,-500.0,0.00024657,2]
[341901453,1731277838753,-500.0,0.00024657,2]
[341901454,1731277838765,-500.0,0.00024657,2]
[341901455,1731277838776,-500.0,0.00024657,2]
[341901456,1731277838786,-500.0,0.00024657,2]
[341901457,1731277838795,-505.9719757,0.00024657,2]
[341901458,1731277838806,-500.0,0.00024657,2]
[341901459,1731277838816,-250.0,0.00024657,2]
[341901460,1731277838826,-500.0,0.00024657,2]
[341901461,1731277838836,-500.0,0.00024657,2]
[341901462,1731277838845,-500.0,0.00024657,2]
[341901463,1731277838854,-308.99934941,0.00024657,2]
[341901464,1731277838864,-500.0,0.00024657,2]
[341901465,1731277838874,-500.0,0.00024657,2]
[341901466,1731277838883,-500.0,0.00024657,2]
[341901467,1731277838893,-500.0,0.00024657,2]
[341901468,1731277838903,-743.34,0.00024657,2]
[341901469,1731277838912,-321.90576743,0.00024657,2]
[341901470,1731277838922,-500.0,0.00024657,2]
[341901471,1731277838932,-500.0,0.00024657,2]
[341901472,1731277838941,-500.0,0.00024657,2]
[341901473,1731277838951,-500.0,0.00024657,2]
[341901474,1731277838960,-500.0,0.00024657,2]
[341901475,1731277838970,-500.0,0.00024657,2]
[341901476,1731277838979,-500.0,0.00024657,2]
[341901477,1731277838993,-2336.0,0.00024657,2]
[341901478,1731277839002,-500.0,0.00024657,2]
[341901479,1731277839011,-500.0,0.00024657,2]
[341901480,1731277839020,-500.0,0.00024657,2]
[341901481,1731277839030,-500.0,0.00024657,2]
[341901482,1731277839039,-613.75,0.00024657,2]
[341901483,1731277839048,-500.0,0.00024657,2]
[341901484,1731277839057,-499.28979392,0.00024657,2]
[341901485,1731277839067,-500.0,0.00024657,2]
[341901486,1731277839076,-500.0,0.00024657,2]
[341901487,1731277839086,-500.0,0.00024657,2]
[341901488,1731277839095,-500.0,0.00024657,2]
[341901489,1731277839105,-500.0,0.00024657,2]
[341901490,1731277839115,-500.0,0.00024657,2]
[341901491,1731277839124,-500.0,0.00024657,2]
[341901492,1731277839134,-500.0,0.00024657,2]
[341901493,1731277839143,-500.0,0.00024657,2]
[341901494,1731277839153,-500.0,0.00024657,2]
[341901495,1731277839163,-500.0,0.00024657,2]
[341901496,1731277839172,-25.16084059,0.00024657,2]
[341901519,1731277840260,-474.83915941,0.00024657,2]
[341901520,1731277840270,-470.0,0.00024657,2]
[341901521,1731277840280,-500.0,0.00024657,2]
[341901522,1731277840290,-500.0,0.00024657,2]
[341901523,1731277840300,-500.0,0.00024657,2]
[341901524,1731277840310,-521.72894475,0.00024657,2]
[341901526,1731277840321,-500.0,0.00024657,2]
[341901528,1731277840330,-500.0,0.00024657,2]
[341901529,1731277840340,-500.0,0.00024657,2]
[341901530,1731277840350,-500.0,0.00024657,2]
[341901531,1731277840359,-500.0,0.00024657,2]
[341901532,1731277840368,-500.0,0.00024657,2]
[341901533,1731277840378,-500.0,0.00024657,2]
[341901534,1731277840387,-500.0,0.00024657,2]
[341901535,1731277840396,-500.0,0.00024657,2]
[341901536,1731277840406,-500.0,0.00024657,2]
[341901537,1731277840415,-2168.63,0.00024657,2]
[341901538,1731277840425,-500.0,0.00024657,2]
[341901539,1731277840434,-847.96,0.00024657,2]
[341901540,1731277840444,-500.0,0.00024657,2]
[341901541,1731277840456,-500.0,0.00024657,2]
[341901542,1731277840465,-506.51763638,0.00024657,2]
[341901543,1731277840474,-500.0,0.00024657,2]
[341901544,1731277840484,-500.0,0.00024657,2]
[341901545,1731277840495,-535.47358485,0.00024657,2]
[341901546,1731277840505,-500.0,0.00024657,2]
[341901547,1731277840515,-500.0,0.00024657,2]
[341901548,1731277840525,-501.88189777,0.00024657,2]
[341901549,1731277840535,-693.27,0.00024657,2]
[341901550,1731277840548,-503.19376115,0.00024657,2]
[341901551,1731277840557,-500.0,0.00024657,2]
[341901552,1731277840567,-500.0,0.00024657,2]
[341901553,1731277840577,-500.0,0.00024657,2]
[341901554,1731277840587,-500.0,0.00024657,2]
[341901555,1731277840597,-500.0,0.00024657,2]
[341901556,1731277840607,-500.0,0.00024657,2]
[341901557,1731277840617,-500.0,0.00024657,2]
[341901558,1731277840627,-835.33,0.00024657,2]
[341901559,1731277840637,-500.0,0.00024657,2]
[341901560,1731277840646,-500.0,0.00024657,2]
[341901561,1731277840656,-502.50734843,0.00024657,2]
[341901562,1731277840666,-1044.41,0.00024657,2]
[341901563,1731277840675,-500.0,0.00024657,2]
[341901564,1731277840685,-1228.02,0.00024657,2]
[341901565,1731277840695,-721.58,0.00024657,2]
[341901566,1731277840705,-500.0,0.00024657,2]
[341901567,1731277840715,-500.0,0.00024657,2]
[341901568,1731277840724,-1199.84,0.00024657,2]
[341901569,1731277840734,-500.0,0.00024657,2]
[341901570,1731277840746,-515.01725626,0.00024657,2]
[341901571,1731277840755,-500.0,0.00024657,2]
[341901572,1731277840764,-8627.07,0.00024657,2]
[341901573,1731277840775,-500.0,0.00024657,2]
[341901574,1731277840784,-500.0,0.00024657,2]
[341901575,1731277840794,-500.0,0.00024657,2]
[341901576,1731277840804,-1000.0,0.00024657,2]
[341901577,1731277840814,-20531.91,0.00024657,2]
[341901578,1731277840824,-500.0,0.00024657,2]
[341901579,1731277840834,-2129.51,0.00024657,2]
[341901580,1731277840843,-328.39445547,0.00024657,2]
[341901581,1731277840853,-500.0,0.00024657,2]
[341901582,1731277840864,-500.0,0.00024657,2]
[341901583,1731277840873,-520.09,0.00024657,2]
[341901584,1731277840883,-500.0,0.00024657,2]
[341901585,1731277840893,-500.0,0.00024657,2]
[341901586,1731277840903,-500.0,0.00024657,2]
[341901587,1731277840912,-500.0,0.00024657,2]
[341901588,1731277840922,-1768.5,0.00024657,2]
[341901589,1731277840931,-500.0,0.00024657,2]
[341901590,1731277840941,-500.0,0.00024657,2]
[341901591,1731277840951,-500.0,0.00024657,2]
[341901592,1731277840961,-500.0,0.00024657,2]
[341901593,1731277840971,-500.0,0.00024657,2]
[341901594,1731277840981,-574.53291783,0.00024657,2]
[341901595,1731277840992,-727.9,0.00024657,2]
[341901596,1731277841002,-500.0,0.00024657,2]
[341901597,1731277841012,-500.0,0.00024657,2]
[341901598,1731277841022,-500.0,0.00024657,2]
[341901599,1731277841031,-4491.08,0.00024657,2]
[341901600,1731277841041,-500.0,0.00024657,2]
[341901601,1731277841050,-514.9228471,0.00024657,2]
[341901602,1731277841060,-500.0,0.00024657,2]
[341901603,1731277841070,-500.0,0.00024657,2]
[341901604,1731277841079,-500.0,0.00024657,2]
[341901605,1731277841090,-500.0,0.00024657,2]
[341901606,1731277841099,-500.0,0.00024657,2]
[341901607,1731277841109,-3349.39,0.00024657,2]
[341901608,1731277841119,-1672.61,0.00024657,2]
[341901609,1731277841129,-500.0,0.00024657,2]
[341901610,1731277841138,-500.0,0.00024657,2]
[341901611,1731277841148,-500.0,0.00024657,2]
[341901612,1731277841158,-623.65,0.00024657,2]
[341901613,1731277841168,-500.0,0.00024657,2]
[341901614,1731277841390,-500.0,0.00024657,2]
[341901615,1731277841400,-500.0,0.00024657,2]
[341901616,1731277841411,-1236.46,0.00024657,2]
[341901617,1731277841420,-500.0,0.00024657,2]
[341901618,1731277841431,-500.0,0.00024657,2]
[341901619,1731277841441,-500.0,0.00024657,2]
[341901620,1731277841451,-500.0,0.00024657,2]
[341901621,1731277841461,-500.0,0.00024657,2]
[341901622,1731277841471,-500.0,0.00024657,2]
[341901623,1731277841482,-500.0,0.00024657,2]